bitfinex-derivatives/quotes_ETHF0:USTF0_20250410
["timestamp","ask_amount","ask_price","bid_price","bid_amount"]
[1744247111552,3.2078,1646.5,1646.4,1.21511]
[1744247111760,3.3125,1646.5,1646.4,1.21511]
[1744247111949,6.5203,1646.5,1646.4,1.21511]
[1744247112154,3.3125,1646.5,1646.4,1.21511]
[1744247114262,3.3125,1646.5,1646.4,5.75611]
[1744247114558,3.3125,1646.5,1646.3,7.21112]
[1744247114763,7.7886,1646.5,1646.3,7.21112]
[1744247114964,7.7886,1646.5,1646.4,1.21511]
[1744247115457,7.7886,1646.5,1646.3,7.21113]
[1744247115662,1.21518,1646.3,1646.2,5.75622]
[1744247115850,1.21518,1646.3,1645.9,6.25557466]
[1744247115851,1.21534,1646.1,1645.9,4.55011466]
[1744247116058,1.21534,1646.1,1645.9,1.22452466]
[1744247116454,6.6112,1646.0,1645.9,1.22452466]
[1744247117666,3.395,1646.0,1645.9,1.22452466]
[1744247118060,3.2162,1646.3,1646.2,1.21525]
[1744247118268,6.6112,1646.3,1646.2,1.21525]
[1744247118567,7.82638,1646.3,1646.2,1.21525]
[1744247119063,3.2078,1646.9,1646.2,3.2078]
[1744247119265,4.42259,1646.9,1646.7,1.21489]
[1744247119464,3.2078,1646.9,1646.7,1.21489]
[1744247119964,15.77889672,1647.1,1646.7,1.21489]
[1744247120170,12.57109672,1647.1,1646.7,1.21489]
[1744247120365,3.4512,1647.0,1646.7,5.75589]
[1744247120561,1.21477,1646.9,1646.7,1.21489]
[1744247120761,3.45120466,1646.8,1646.7,1.21489]
[1744247122268,3.45120466,1646.8,1646.6,3.5007]
[1744247122570,1.21506,1646.5,1646.3,1.21515]
[1744247122764,3.3238,1646.4,1646.2,1.21523]
[1744247122961,4.423,1646.3,1646.0,5.996]
[1744247123157,3.3238,1646.2,1646.1,1.21527]
[1744247123361,3.3238,1646.2,1646.0,1.21536]
[1744247123571,3.3238,1646.2,1646.1,1.21533]
[1744247124770,3.3238,1646.2,1646.1,4.44143]
[1744247125271,3.4534,1646.4,1646.3,1.21518]
[1744247125673,4.66854,1646.4,1646.1,3.2261]
[1744247125871,3.4534,1646.4,1646.3,1.21518]
[1744247126575,6.743,1646.4,1646.3,1.21518]
[1744247126774,7.95811,1646.4,1646.3,1.21518]
[1744247127375,6.743,1646.4,1646.3,1.21518]
[1744247127572,3.2078,1646.5,1646.1,3.2261]
[1744247127875,3.2896,1646.6,1646.5,1.21503]
[1744247129075,4.66e-06,1646.8,1646.7,1.21489]
[1744247129773,4.66e-06,1646.8,1646.7,4.49679]
[1744247130774,3.50070466,1646.8,1646.7,4.49679]
[1744247130970,4.66e-06,1646.8,1646.7,4.49679]
[1744247131367,4.66e-06,1646.8,1646.7,8.01459]
[1744247132468,4.66e-06,1646.8,1646.7,11.22239]
[1744247133169,4.66e-06,1646.8,1646.7,16.22239]
[1744247133974,4.66e-06,1646.8,1646.7,11.22239]
[1744247136875,8.24374272,1647.7,1647.3,3.03596]
[1744247137071,3.2725,1647.6,1647.4,4.66587]
[1744247137278,3.2725,1647.6,1647.5,4.6658]
[1744247138172,3.2725,1647.6,1647.5,7.8736]
[1744247138372,7.03869738,1647.7,1647.6,1.21422]
[1744247138580,10.21909738,1647.7,1647.6,1.21422]
[1744247142276,3.18951466,1647.7,1647.6,1.21422]
[1744247142676,4.40366466,1647.7,1647.6,1.21422]
[1744247143076,3.18951466,1647.7,1647.6,1.21422]
[1744247143578,0.00911466,1647.7,1647.6,1.21422]
[1744247143976,0.00911466,1647.7,1647.6,4.65382]
[1744247149379,0.00911466,1647.7,1647.6,1.21422]
[1744247149781,0.00911466,1647.7,1647.6,4.69432]
[1744247150078,17.13439672,1648.2,1647.6,4.69432]
[1744247150079,3.2078,1648.5,1647.6,14.4761]
[1744247150278,3.5051,1648.6,1648.5,1.21356]
[1744247150886,3.5051,1648.6,1648.5,1.23444623]
[1744247151288,7.0276,1648.6,1648.5,1.23444623]
[1744247152284,13.24109,1648.6,1648.5,1.23444623]
[1744247152685,12.0276,1648.6,1648.5,1.23444623]
[1744247152984,7.0276,1648.6,1648.5,1.23444623]
[1744247155581,3.5225,1648.6,1648.5,1.23444623]
[1744247156491,3.5225,1648.6,1648.5,5.76544623]
[1744247156692,0.00598351,1648.7,1648.6,1.21349]
[1744247156894,0.00598351,1648.7,1648.6,45.44519]
[1744247157294,0.00598351,1648.7,1648.6,45.46607623]
[1744247158199,3.51e-06,1648.7,1648.6,50.46607623]
[1744247158788,5.83399672,1649.5,1649.4,1.2129]
[1744247158992,7.04680672,1649.6,1649.4,1.21284]
[1744247159190,3.03225,1649.4,1648.9,4.531]
[1744247159400,4.42084,1649.2,1649.1,0.02088623]
[1744247159904,12.68334,1649.2,1649.1,0.02088623]
[1744247161195,1.21312,1649.1,1649.0,0.00911466]
[1744247161387,5.74312,1649.1,1649.0,0.00911466]
[1744247161697,1.21337,1648.8,1648.7,1.21337]
[1744247161902,9.42117,1648.8,1648.7,1.21337]
[1744247162498,6.3995,1648.8,1648.7,1.21337]
[1744247162698,3.1917,1648.8,1648.7,1.21337]
[1744247164191,3.1917,1648.8,1648.6,0.00911466]
[1744247164192,1.21341,1648.7,1648.6,0.00911466]
[1744247164399,7.61288,1648.8,1648.7,1.21341]
[1744247164692,1.21341,1648.7,1648.6,1.22254466]
[1744247164887,1.21341,1648.7,1648.6,0.00911466]
[1744247166490,6.21341,1648.7,1648.6,0.00911466]
[1744247166692,6.21341,1648.7,1648.2,1.21374]
[1744247166693,1.21377,1648.3,1648.2,1.21374]
[1744247166888,3.2078,1648.4,1648.3,1.21371]
[1744247167089,4.42143,1648.4,1648.3,1.21371]
[1744247168597,1.21371,1648.3,1648.2,0.00911466]
[1744247168989,4.68761,1648.3,1648.2,0.00911466]
[1744247169188,4.68761,1648.3,1648.2,1.22289466]
[1744247169400,1.21371,1648.3,1648.2,1.22289466]
[1744247172396,1.21371,1648.3,1648.2,0.00911466]
[1744247173604,1.21404,1647.9,1647.8,5.74403]
[1744247173804,4.44272623,1647.9,1647.8,1.21403]
[1744247174007,1.23492623,1647.9,1647.8,1.21403]
[1744247174198,1.21407,1647.8,1647.7,45.28619]
[1744247174398,1.23493623,1647.9,1647.8,1.21407]
[1744247174702,1.21407,1647.8,1647.7,45.28617]
[1744247174909,1.21407,1647.8,1647.7,42.01415]
[1744247175303,4.44275623,1647.8,1647.7,1.21415]
[1744247176505,1.21415,1647.7,1647.6,47.03491466]
[1744247176700,4.44445,1647.7,1647.6,45.17543466]
[1744247176904,4.46533623,1647.7,1647.6,45.17543466]
[1744247177597,3.25118623,1647.7,1647.6,45.17543466]
[1744247177797,4.46533623,1647.7,1647.6,45.17543466]
[1744247178106,3.25118623,1647.7,1647.6,45.17543466]
[1744247178305,4.46533623,1647.7,1647.6,45.17543466]
[1744247179908,4.46533623,1647.7,1647.6,0.00911466]
[1744247180205,7.67313623,1647.7,1647.6,0.00911466]
[1744247180598,3.03564,1647.6,1647.2,11.95976]
[1744247180806,1.21444,1647.3,1647.2,11.95976]
[1744247181104,1.23528623,1647.4,1647.3,1.21444]
[1744247181305,1.23528623,1647.4,1647.3,4.25424]
[1744247182502,0.02088623,1647.4,1647.3,4.25424]
[1744247182899,6.23e-06,1647.4,1647.3,9.25424]
[1744247183503,1.21428,1647.6,1647.2,15.42721466]
[1744247183707,1.21432,1647.5,1647.4,1.21431]
[1744247184002,9.6069,1647.8,1647.3,3.1625]
[1744247184198,4.46949,1647.7,1647.4,3.2078]
[1744247184403,1.21422,1647.6,1647.5,3.1625]
[1744247186210,1.21437,1647.4,1647.3,5.74543]
[1744247186504,1.21437,1647.4,1647.3,8.93423]
[1744247186807,1.21437,1647.4,1647.3,7.7198]
[1744247187811,1.21444,1647.3,1647.2,47.02341466]
[1744247188109,1.21444,1647.3,1647.2,50.21221466]
[1744247188703,4.31484,1647.3,1647.2,50.21221466]
[1744247188901,1.21444,1647.3,1647.2,50.21221466]
[1744247189110,1.21444,1647.3,1647.2,51.42673466]
[1744247190109,1.21444,1647.3,1647.2,50.21221466]
[1744247191503,4.52824,1647.3,1647.2,50.21221466]
[1744247193507,1.21444,1647.3,1647.2,50.21221466]
[1744247193705,1.21444,1647.3,1647.2,40.80911466]
[1744247193904,4.23234,1647.3,1647.2,0.00911466]
[1744247194510,12.44014,1647.3,1647.2,0.00911466]
[1744247195112,1.21466,1647.0,1646.9,9.591]
[1744247195307,4.42246,1647.0,1646.9,9.591]
[1744247195611,4.42246,1647.0,1646.8,1.21477]
[1744247195612,3.2078,1647.0,1646.7,5.74482]
[1744247195912,3.2078,1647.0,1646.7,3.2362]
[1744247195913,1.21481,1646.8,1646.7,3.2362]
[1744247196114,4.42261,1646.8,1646.7,3.2362]
[1744247196415,1.22388466,1646.9,1646.8,1.21481]
[1744247196710,1.21481,1646.8,1646.7,4.45109]
[1744247196913,1.21481,1646.8,1646.7,3.2362]
[1744247197114,0.00911466,1646.9,1646.6,6.46211466]
[1744247197115,1.21489,1646.7,1646.6,6.46211466]
[1744247197421,4.38749,1646.7,1646.6,1.22407466]
[1744247197616,4.38749,1646.7,1646.6,0.00911466]
[1744247202316,4.38749,1646.7,1646.6,3.20831466]
[1744247203521,4.38749,1646.7,1646.6,0.00911466]
[1744247205023,9.38749,1646.7,1646.6,0.00911466]
[1744247205523,19.75348672,1646.7,1646.6,4.66e-06]
[1744247211926,14.75348672,1646.7,1646.6,4.66e-06]
[1744247212440,14.75348672,1646.7,1645.8,1.21552]
[1744247212441,1.21556,1645.9,1645.8,1.21552]
[1744247212625,1.21556,1645.9,1645.8,6.21552]
[1744247212823,1.21556,1645.9,1645.8,47.01552]
[1744247213223,1.21556,1645.9,1645.8,5.0]
[1744247213623,4.42336,1645.9,1645.8,5.0]
[1744247213933,1.21555,1645.8,1645.7,3.22527646]
[1744247214123,4.53505,1645.8,1645.7,0.00607646]
[1744247214320,4.53505,1645.8,1645.7,3.21607646]
[1744247214530,4.53505,1645.8,1645.7,0.00607646]
[1744247215124,4.53505,1645.8,1645.7,3.21607646]
[1744247217926,1.21555,1645.8,1645.7,3.21607646]
[1744247218328,1.21555,1645.8,1645.7,6.49187646]
[1744247219828,1.21555,1645.8,1645.7,7.70749646]
[1744247220038,1.21555,1645.8,1645.7,6.49187646]
[1744247220928,4.34295,1645.8,1645.7,6.49187646]
[1744247221428,1.21555,1645.8,1645.7,6.49187646]
[1744247223029,1.21555,1645.8,1645.7,7.70749646]
[1744247223736,4.42331,1645.9,1645.8,1.21555]
[1744247223934,3.2078,1645.9,1645.8,4.34355]
[1744247224127,3.2078,1645.9,1645.8,9.34355]
[1744247224935,1.22456466,1646.0,1645.9,1.21548]
[1744247225139,1.22456466,1646.0,1645.9,4.34348]
[1744247226940,0.00911466,1646.0,1645.9,4.34348]
[1744247227531,0.00911466,1646.0,1645.9,12.55128]
[1744247227731,1.21512,1646.4,1646.3,1.21511]
[1744247228540,4.42289,1646.5,1646.4,1.21511]
[1744247230244,3.2078,1646.5,1646.4,1.21511]
[1744247230440,4.42283,1646.5,1646.4,1.21511]
[1744247230639,1.22409466,1646.6,1646.5,1.21503]
[1744247231242,1.22409466,1646.6,1646.5,4.39973]
[1744247232849,1.22409466,1646.6,1646.5,3.1847]
[1744247233049,1.21518,1646.3,1646.2,3.3026]
[1744247233242,1.21518,1646.3,1646.2,6.3689]
[1744247233440,1.21518,1646.3,1646.2,7.58415]
[1744247233835,1.21511,1646.5,1646.4,1.21507]
[1744247234746,1.21511,1646.5,1646.3,3.0955]
[1744247234747,1.21511,1646.4,1646.3,4.31062]
[1744247235148,1.21511,1646.4,1646.3,3.0955]
[1744247235342,1.21511,1646.4,1646.2,10.8999]
[1744247235343,1.21518,1646.3,1646.2,6.3689]
[1744247235543,4.35058,1646.3,1646.2,6.3689]
[1744247235744,1.21525,1646.2,1646.1,4.45993]
[1744247236047,4.35064,1646.3,1646.2,1.21525]
[1744247236250,4.35064,1646.3,1646.2,3.2446]
[1744247236552,1.21524,1646.3,1646.2,3.2446]
[1744247237552,4.35064,1646.3,1646.2,3.2446]
[1744247238454,1.21555,1645.8,1645.7,0.00607646]
[1744247238646,4.42335,1645.8,1645.7,0.00607646]
[1744247238842,15.25734672,1645.8,1645.7,0.00607646]
[1744247239344,13.50534672,1645.8,1645.7,0.00607646]
[1744247240257,18.50534672,1645.8,1645.7,0.00607646]
[1744247240449,21.86244672,1645.8,1645.7,0.00607646]
[1744247241853,16.86244672,1645.8,1645.7,0.00607646]
[1744247242871,3.2078,1646.0,1645.7,0.00607646]
[1744247243069,1.21548,1645.9,1645.8,1.2155]
[1744247243271,1.21555,1645.8,1645.7,0.00607646]
[1744247243470,4.44655,1645.8,1645.7,0.00607646]
[1744247243770,7.65435,1645.8,1645.7,0.00607646]
[1744247244366,4.44655,1645.8,1645.7,0.00607646]
[1744247244869,4.44655,1645.8,1645.7,1.22169646]
[1744247245571,3.231,1645.8,1645.7,1.22169646]
[1744247245771,1.21552,1645.9,1645.8,1.21555]
[1744247246169,1.21555,1645.8,1645.7,0.00607646]
[1744247246470,4.42335,1645.8,1645.7,0.00607646]
[1744247246864,7.47825,1645.8,1645.7,0.00607646]
[1744247247270,13.31224672,1645.8,1645.7,0.00607646]
[1744247247573,18.31224672,1645.8,1645.7,0.00607646]
[1744247248272,13.31224672,1645.8,1645.7,0.00607646]
[1744247251268,18.31224672,1645.8,1645.7,6.46e-06]
[1744247251761,18.80176043,1645.8,1645.7,6.46e-06]
[1744247251967,13.31224672,1645.8,1645.7,6.46e-06]
[1744247252574,18.31224672,1645.8,1645.7,6.46e-06]
[1744247252877,18.80694997,1645.8,1645.7,6.46e-06]
[1744247255177,13.31224672,1645.8,1645.7,6.46e-06]
[1744247259675,10.25734672,1645.8,1645.7,3.12490646]
[1744247261181,10.25734672,1645.8,1645.7,6.46e-06]
[1744247262379,4.42335,1645.8,1645.7,6.46e-06]
[1744247263974,9.42335,1645.8,1645.7,6.46e-06]
[1744247264778,3.03907,1645.7,1645.1,6.2889]
[1744247264974,1.21607,1645.1,1645.0,3.1415]
[1744247265484,1.21607,1645.1,1644.8,16.7268822]
[1744247265485,1.21621,1644.9,1644.8,56.3106322]
[1744247265681,1.21621,1644.9,1644.8,59.4370322]
[1744247265880,1.21621,1644.9,1644.8,18.6370322]
[1744247267085,1.21621,1644.9,1644.8,19.8533222]
[1744247267584,3.21691466,1645.0,1644.9,1.21621]
[1744247267585,1.22529466,1645.0,1644.9,1.21621]
[1744247267885,1.22529466,1645.0,1644.9,3.1264]
[1744247268586,1.22529466,1645.0,1644.9,4.34261]
[1744247268789,0.00911466,1645.0,1644.9,9.34261]
[1744247269584,0.00911466,1645.0,1644.9,6.21621]
[1744247269886,1.21629,1644.8,1644.7,0.00911466]
[1744247270488,1.21626,1644.9,1644.8,1.21624]
[1744247270882,1.21629,1644.8,1644.7,0.00911466]
[1744247271580,4.42409,1644.8,1644.7,0.00911466]
[1744247271986,14.78908672,1644.8,1644.7,0.00911466]
[1744247272290,17.85728672,1644.8,1644.7,0.00911466]
[1744247272678,17.85728672,1644.8,1644.7,4.66e-06]
[1744247272883,22.85728672,1644.8,1644.7,4.66e-06]
[1744247273682,17.85728672,1644.8,1644.7,4.66e-06]
[1744247275390,22.85728672,1644.8,1644.7,4.66e-06]
[1744247275789,17.85728672,1644.8,1644.7,4.66e-06]
[1744247275979,1.21688,1644.0,1643.9,10.6686722]
[1744247276183,1.21688,1644.0,1643.9,9.4517322]
[1744247276485,4.42468,1644.0,1643.9,9.4517322]
[1744247276880,13.45557672,1644.0,1643.9,9.4517322]
[1744247277695,12.23869672,1644.0,1643.7,6.0643]
[1744247277887,4.42483,1643.8,1643.7,6.0643]
[1744247278483,9.04179672,1644.0,1643.7,7.2814]
[1744247278793,1.21703,1643.8,1643.7,7.2814]
[1744247279190,1.21703,1643.8,1643.4,9.4517322]
[1744247279191,1.21725,1643.5,1643.4,9.4517322]
[1744247279693,1.21725,1643.5,1643.4,15.6690522]
[1744247279885,1.21725,1643.5,1643.4,9.4517322]
[1744247280792,4.23015,1643.5,1643.4,9.4517322]
[1744247281594,8.76015,1643.5,1643.4,9.4517322]
[1744247282696,14.59414672,1643.5,1643.4,8.0343622]
[1744247282900,25.49954672,1643.5,1643.4,1.1332655]
[1744247283297,1.21762,1643.0,1642.5,98.99576]
[1744247283595,1.2177,1642.9,1642.5,95.9508]
[1744247283789,3.21691466,1643.1,1642.5,95.9508]
[1744247283988,1.21766,1643.0,1642.9,1.21767]
[1744247284200,1.22670466,1643.1,1643.0,1.21762]
[1744247284696,0.00911466,1643.1,1643.0,6.21762]
[1744247284894,1.22666466,1643.1,1643.0,5.0]
[1744247285194,1.22666466,1643.1,1643.0,6.21762]
[1744247285501,1.22666466,1643.1,1642.8,6.2237]
[1744247285502,1.21762,1643.0,1642.9,1.21764]
[1744247287105,1.21762,1643.0,1642.9,4.17454]
[1744247287998,1.21798,1642.6,1642.5,1.21796]
[1744247288190,3.04426,1642.9,1642.5,6.4431]
[1744247288390,1.21788,1642.7,1642.6,1.21787]
[1744247288591,9.04179672,1643.0,1642.6,8.2078]
[1744247288787,1.21776,1642.9,1642.8,1.21774]
[1744247289894,0.00911466,1643.1,1642.8,5.0]
[1744247290096,1.21762,1643.0,1642.9,9.281]
[1744247290291,4.42542,1643.0,1642.9,9.281]
[1744247290492,7.52922,1643.0,1642.9,9.281]
[1744247291396,1.21784,1642.7,1642.6,1.21787]
[1744247291598,3.04433,1642.9,1642.5,7.52488]
[1744247291599,1.21792,1642.6,1642.5,7.52488]
[1744247291896,1.21807,1642.4,1642.3,2.9741]
[1744247292097,4.42587,1642.4,1642.3,2.9741]
[1744247292400,1.21807,1642.4,1642.3,2.9741]
[1744247292597,1.21802,1642.5,1642.4,1.21802]
[1744247292798,1.218,1642.5,1642.4,1.218]
[1744247292999,6.199,1642.6,1642.3,2.9741]
[1744247293201,13.41171672,1642.7,1642.3,6.1819]
[1744247293500,1.21807,1642.4,1642.3,4.19219]
[1744247293695,1.21804,1642.5,1642.4,1.21806]
[1744247293896,1.21805,1642.5,1642.1,49.93286]
[1744247294099,1.21805,1642.5,1642.4,1.21807]
[1744247294402,1.21808,1642.4,1642.3,1.21808]
[1744247295204,4.20925,1642.5,1642.4,1.21807]
[1744247295507,1.21805,1642.5,1642.4,1.21807]
[1744247295897,4.42575,1642.6,1642.5,1.21799]
[1744247296104,1.21795,1642.6,1642.5,1.21799]
[1744247296508,1.21791,1642.7,1642.6,1.21788]
[1744247296702,4.42563,1642.8,1642.7,1.21784]
[1744247296908,3.2078,1642.8,1642.7,1.21784]
[1744247297300,10.25947672,1643.0,1642.9,1.2177]
[1744247297594,1.22671466,1643.1,1643.0,1.21762]
[1744247298508,0.00911466,1643.1,1643.0,9.42542]
[1744247298804,1.21756,1643.1,1643.0,1.21758]
[1744247299105,1.21753,1643.2,1643.0,42.01758]
[1744247299302,1.21755,1643.1,1643.0,40.8]
[1744247299501,1.21762,1643.0,1642.9,6.17021466]
[1744247299699,4.42542,1643.0,1642.9,0.00911466]
[1744247300294,7.44532,1643.0,1642.9,0.00911466]
[1744247300511,4.23752,1643.0,1642.9,0.00911466]
[1744247300707,7.44532,1643.0,1642.9,1.22681466]
[1744247301608,0.00911466,1643.1,1643.0,1.21762]
[1744247302303,1.22666466,1643.1,1643.0,1.21762]
[1744247302509,0.00911466,1643.1,1643.0,1.21762]
[1744247302711,1.22666466,1643.1,1643.0,1.21762]
[1744247302909,3.10791466,1643.1,1643.0,1.21762]
[1744247303310,4.32546466,1643.1,1643.0,4.36292]
[1744247303904,3.10791466,1643.1,1643.0,4.36292]
[1744247304110,0.00911466,1643.1,1643.0,4.36292]
[1744247304312,0.00911466,1643.1,1643.0,7.26372]
[1744247304909,1.22666466,1643.1,1643.0,7.26372]
[1744247305613,0.00911466,1643.1,1643.0,7.26372]
[1744247306003,1.22666466,1643.1,1643.0,7.26372]
[1744247306417,1.22666466,1643.1,1643.0,10.44642]
[1744247307613,0.00911466,1643.1,1643.0,10.44642]
[1744247307814,1.22666466,1643.1,1643.0,10.44642]
[1744247308114,0.00911466,1643.1,1643.0,10.44642]
[1744247313023,0.00911466,1643.1,1643.0,15.44642]
[1744247314917,1.21709,1643.8,1643.4,1.21732]
[1744247315120,1.21709,1643.8,1643.7,1.21705]
[1744247315620,3.1347,1643.8,1643.7,1.21705]
[1744247315824,4.35173,1643.8,1643.7,1.21705]
[1744247316024,3.1347,1643.8,1643.7,1.21705]
[1744247316416,0.00911466,1643.9,1643.8,1.21703]
[1744247317319,0.00911466,1643.9,1643.8,42.01703]
[1744247317522,4.68736232,1644.2,1644.1,1.21681]
[1744247317722,4.68736232,1644.2,1644.1,5.74881]
[1744247318020,4.68736232,1644.2,1644.1,10.74881]
[1744247318222,4.68736232,1644.2,1644.1,17.10001]
[1744247318927,0.00911466,1644.3,1644.2,1.21673]
[1744247319125,0.00911466,1644.3,1644.2,4.39633]
[1744247319525,4.66e-06,1644.3,1644.2,18.60013]
[1744247319730,4.66e-06,1644.3,1644.2,13.60013]
[1744247319923,4.66e-06,1644.3,1644.2,4.39633]
[1744247320127,4.66e-06,1644.3,1644.2,49.72733]
[1744247322431,4.66e-06,1644.3,1644.2,45.19633]
[1744247323232,4.66e-06,1644.3,1644.2,52.93413]
[1744247324032,4.66e-06,1644.3,1644.2,58.93013]
[1744247324237,4.66e-06,1644.3,1644.2,54.40013]
[1744247324833,4.66e-06,1644.3,1644.2,59.40013]
[1744247326036,4.66e-06,1644.3,1644.2,54.40013]
[1744247327333,4.66e-06,1644.3,1644.2,59.40013]
[1744247327530,3.1151,1644.9,1644.8,1.21629]
[1744247327735,6.3229,1644.9,1644.7,1.21631]
[1744247327932,1.21636,1644.7,1644.6,1.21638]
[1744247328234,4.42416,1644.7,1644.6,1.21638]
[1744247328632,7.43936,1644.7,1644.6,1.21638]
[1744247330636,6.223,1644.7,1644.6,1.21638]
[1744247331631,9.2198,1644.7,1644.6,1.21638]
[1744247331840,9.2198,1644.7,1644.6,4.23568]
[1744247332926,6.012,1644.7,1644.6,4.23568]
[1744247333631,2.9968,1644.7,1644.6,4.23568]
[1744247334335,0.00911466,1644.8,1644.7,1.21636]
[1744247334841,0.00911466,1644.8,1644.7,4.13666]
[1744247335142,1.22540466,1644.8,1644.7,1.21636]
[1744247335438,4.31350466,1644.8,1644.7,1.21636]
[1744247335638,1.21643,1644.7,1644.6,1.21638]
[1744247335835,4.08833,1644.7,1644.6,1.21638]
[1744247336036,2.8719,1644.7,1644.6,1.21638]
[1744247336935,0.00911466,1644.8,1644.7,1.21636]
[1744247337128,0.00911466,1644.8,1644.7,8.66466]
[1744247337533,0.00911466,1644.8,1644.7,11.81866]
[1744247338036,0.00911466,1644.8,1644.6,7.21238]
[1744247338340,1.21636,1644.7,1644.6,1.21638]
[1744247338535,3.1366,1644.7,1644.6,1.21638]
[1744247338739,4.35296,1644.7,1644.6,1.21638]
[1744247339035,7.31426,1644.7,1644.6,1.21638]
[1744247339238,6.0979,1644.7,1644.6,1.21638]
[1744247339434,7.31426,1644.7,1644.6,1.21638]
[1744247340535,0.00911466,1644.8,1644.7,1.21636]
[1744247340843,1.21639,1644.7,1644.6,1.21637]
[1744247341835,4.18219,1644.7,1644.6,1.21637]
[1744247343343,2.9658,1644.7,1644.6,1.21637]
[1744247343545,4.18216,1644.7,1644.6,1.21637]
[1744247343842,1.21644,1644.6,1644.5,1.21647]
[1744247344040,4.18224,1644.6,1644.5,1.21647]
[1744247345137,2.9658,1644.6,1644.5,1.21647]
[1744247346245,4.18224,1644.6,1644.5,1.21647]
[1744247346548,2.9658,1644.6,1644.5,1.21647]
[1744247348545,4.43320466,1644.8,1644.7,1.21636]
[1744247348745,1.21642,1644.7,1644.6,1.21638]
[1744247349348,3.21691466,1644.8,1644.7,1.21636]
[1744247349543,0.00911466,1644.8,1644.7,1.21636]
[1744247349937,0.00911466,1644.8,1644.7,4.16636]
[1744247350349,1.22540466,1644.8,1644.7,4.16636]
[1744247350547,1.22540466,1644.8,1644.7,1.21636]
[1744247350847,4.15910466,1644.8,1644.7,1.21636]
[1744247351036,0.00911466,1644.8,1644.7,1.21636]
[1744247351241,0.00911466,1644.8,1644.7,4.29756]
[1744247354845,1.22540466,1644.8,1644.7,1.21636]
[1744247355046,4.01510466,1644.8,1644.7,1.21636]
[1744247356248,2.79881466,1644.8,1644.7,1.21636]
[1744247356753,4.01510466,1644.8,1644.7,1.21636]
[1744247357744,1.21644,1644.6,1644.5,4.06756]
[1744247357952,1.21644,1644.6,1644.5,1.21646]
[1744247358454,1.21644,1644.6,1644.3,16.6544]
[1744247358455,2.7,1644.6,1644.3,16.6544]
[1744247358650,1.21666,1644.3,1644.2,42.01667]
[1744247358855,1.21681,1644.1,1644.0,4.15154466]
[1744247359361,1.21681,1644.1,1644.0,7.00264466]
[1744247360452,1.21681,1644.1,1644.0,0.00911466]
[1744247361158,3.90241,1644.1,1644.0,1.22599466]
[1744247361346,2.6856,1644.1,1644.0,1.22599466]
[1744247361551,4.18262,1644.3,1644.2,1.21673]
[1744247361751,6.86822,1644.3,1644.2,1.21673]
[1744247364658,5.6515,1644.3,1644.2,1.21673]
[1744247364856,1.21665,1644.4,1644.3,1.21666]
[1744247365048,7.43476232,1644.5,1644.4,1.21658]
[1744247365249,8.63397232,1644.5,1644.4,1.21658]
[1744247367164,7.41746232,1644.5,1644.4,1.21658]
[1744247367460,8.63397232,1644.5,1644.4,1.21658]
[1744247367859,7.41746232,1644.5,1644.4,1.21658]
[1744247368062,1.21646,1644.6,1644.5,1.21651]
[1744247368361,4.15106,1644.6,1644.5,1.21651]
[1744247368755,4.15106,1644.6,1644.5,42.01651]
[1744247370368,1.21666,1644.3,1644.2,5.5947]
[1744247370670,1.21673,1644.2,1644.1,7.21276]
[1744247370959,4.14943,1644.2,1644.1,48.01276]
[1744247371264,4.14943,1644.2,1644.0,7.24841466]
[1744247371265,1.21681,1644.1,1644.0,3.94223466]
[1744247371463,4.14951,1644.1,1644.0,3.94223466]
[1744247371664,4.14951,1644.1,1644.0,0.00911466]
[1744247374670,4.14951,1644.1,1644.0,1.22599466]
[1744247374967,4.14951,1644.1,1644.0,0.00911466]
[1744247376172,4.14951,1644.1,1644.0,1.22599466]
[1744247377461,1.21677,1644.2,1644.1,1.21681]
[1744247377663,6.90521,1644.3,1644.2,1.21673]
[1744247378163,5.90399232,1644.4,1644.3,1.21666]
[1744247378369,8.82129232,1644.4,1644.3,1.21666]
[1744247380474,1.21666,1644.3,1644.2,4.12706]
[1744247380660,1.2168,1644.2,1644.1,1.21675]
[1744247380866,1.21681,1644.1,1644.0,9.93493466]
[1744247381174,1.21681,1644.2,1644.1,1.21681]
[1744247382372,1.21681,1644.1,1644.0,1.22593466]
[1744247382574,3.91041,1644.1,1644.0,1.22593466]
[1744247383275,2.6936,1644.1,1644.0,1.22593466]
[1744247383470,3.91041,1644.1,1644.0,4.16273466]
[1744247383972,3.91041,1644.1,1644.0,1.22593466]
[1744247385272,3.91041,1644.1,1644.0,0.00911466]
[1744247385671,3.91041,1644.1,1644.0,1.22599466]
[1744247386477,3.91041,1644.1,1644.0,0.00911466]
[1744247389269,3.91041,1644.1,1644.0,1.22599466]
[1744247389680,3.91041,1644.1,1644.0,0.00911466]
[1744247391971,1.21718,1643.7,1643.6,1.21717]
[1744247392179,1.21718,1643.6,1643.5,7.00469]
[1744247392376,4.07698,1643.6,1643.5,7.00469]
[1744247393389,4.07698,1643.6,1643.5,9.69189]
[1744247393993,1.21718,1643.6,1643.5,9.69189]
[1744247394194,6.67866466,1643.7,1643.6,1.21718]
[1744247394492,6.67866466,1643.7,1643.6,3.90438]
[1744247395693,3.90816466,1643.7,1643.6,3.90438]
[1744247395897,0.00911466,1643.7,1643.6,3.90438]
[1744247397294,0.00911466,1643.7,1643.6,8.90438]
[1744247399492,0.00911466,1643.7,1643.6,3.90438]
[1744247400199,1.22621466,1643.7,1643.6,3.90438]
[1744247400399,0.00911466,1643.7,1643.6,3.90438]
[1744247403201,0.00911466,1643.7,1643.6,9.90038]
[1744247403392,0.00911466,1643.7,1643.6,14.90038]
[1744247404800,0.00911466,1643.7,1643.6,9.90038]
[1744247405095,1.22621466,1643.7,1643.6,9.90038]
[1744247405297,1.21718,1643.6,1643.5,7.0047]
[1744247406004,2.80121466,1643.7,1643.6,1.21718]
[1744247406194,0.00911466,1643.7,1643.6,4.14818]
[1744247407409,9.04179672,1644.1,1643.6,4.14818]
[1744247407410,5.90406232,1644.3,1644.2,1.21673]